bitfinex-derivatives/quotes_BNBF0:USTF0_20250303
["timestamp","ask_amount","ask_price","bid_price","bid_amount"]
[1741024317547,1.055,593.7,593.08,0.60783845]
[1741024317753,1.055,593.7,593.09,0.60783276]
[1741024317947,1.055,593.7,593.1,0.60782708]
[1741024318150,1.055,593.7,593.11,0.60782139]
[1741024318447,1.055,593.7,593.12,0.60781571]
[1741024318646,1.055,593.7,593.13,0.60781002]
[1741024318850,1.055,593.7,593.14,0.27061582]
[1741024319049,1.055,593.7,593.15,0.60779865]
[1741024319254,1.055,593.7,593.17,1.49047804]
[1741024319451,1.055,593.7,593.18,0.6077816]
[1741024319648,1.055,593.7,593.19,0.60777592]
[1741024319847,1.055,593.7,593.2,0.60770726]
[1741024320052,1.055,593.7,593.21,0.60770158]
[1741024320250,1.055,593.7,593.22,0.27055285]
[1741024320454,1.055,593.7,593.23,0.60769021]
[1741024320649,1.055,593.7,593.24,0.60768453]
[1741024320855,1.055,593.7,593.25,0.60767885]
[1741024321052,1.055,593.7,593.26,0.60767316]
[1741024321253,1.055,593.7,593.27,0.27055285]
[1741024321850,1.055,593.7,593.29,1.49047804]
[1741024322055,1.055,593.7,593.3,0.27055285]
[1741024322257,1.055,593.7,593.3,0.60765043]
[1741024322456,1.055,593.7,593.31,0.27051594]
[1741024324862,1.055,593.7,593.32,0.33708622]
[1741024325052,1.055,593.7,593.33,0.27051594]
[1741024325256,1.055,593.7,593.34,0.33707486]
[1741024325455,1.055,593.7,593.35,0.27051594]
[1741024325657,1.055,593.7,593.36,0.3370635]
[1741024325855,1.055,593.7,593.37,0.27051594]
[1741024328756,1.055,593.7,593.38,0.27048364]
[1741024329065,1.055,593.7,593.39,0.27048364]
[1741024329257,1.055,593.7,593.4,0.27048364]
[1741024329459,1.055,593.7,593.41,0.27048364]
[1741024329662,1.055,593.7,593.42,0.27048364]
[1741024329862,0.3608098,593.7,593.43,0.27048364]
[1741024330062,0.3608098,593.7,593.44,0.27048364]
[1741024330268,0.31167765,593.7,593.45,0.27048364]
[1741024330465,0.31167765,593.7,593.46,0.27048364]
[1741024330666,0.31167765,593.7,593.47,0.27048364]
[1741024330861,0.31167765,593.7,593.37,0.27048364]
[1741024331075,0.31167765,593.7,593.38,0.60753578]
[1741024331267,0.31167765,593.7,593.39,0.6075301]
[1741024331463,0.31167765,593.7,593.4,0.60752442]
[1741024331672,0.31167765,593.7,593.41,0.27048364]
[1741024331870,0.31167765,593.7,593.42,0.27048364]
[1741024332066,0.31167765,593.7,593.4,0.33704078]
[1741024332067,0.31167765,593.7,593.43,0.27048364]
[1741024332367,0.31167765,593.7,593.47,1.49047804]
[1741024332573,0.31167765,593.7,593.48,0.27048364]
[1741024334771,0.31167765,593.7,593.49,0.27048364]
[1741024335070,0.31167765,593.7,593.5,0.27048364]
[1741024335370,0.31167765,593.7,593.51,0.27048364]
[1741024335571,0.31167765,593.7,593.52,0.27048364]
[1741024335774,0.98,593.73,593.53,0.27048364]
[1741024338976,0.98,593.73,593.54,0.33696128]
[1741024339183,0.98,593.73,593.55,0.27048364]
[1741024339578,0.98,593.73,593.56,0.27041271]
[1741024339773,0.98,593.73,593.57,0.60735696]
[1741024339970,0.98,593.73,593.58,0.60735128]
[1741024340177,0.84751597,593.73,593.59,0.6073456]
[1741024340373,0.16086625,593.73,593.6,0.60733993]
[1741024340577,0.785,594.16,593.61,0.60733425]
[1741024340775,0.785,594.16,593.62,0.60732858]
[1741024340975,0.785,594.16,593.63,0.27041271]
[1741024341177,0.785,594.16,593.64,0.27041271]
[1741024341377,0.785,594.16,593.65,0.27041271]
[1741024341678,0.785,594.16,593.66,0.60730588]
[1741024341972,0.785,594.16,593.67,0.6073002]
[1741024342171,0.785,594.16,593.68,0.60729453]
[1741024342377,0.785,594.16,593.69,0.27041271]
[1741024342577,0.785,594.16,593.7,0.27041271]
[1741024342773,0.785,594.16,593.71,0.27029998]
[1741024343079,0.785,594.16,593.72,0.27029998]
[1741024343281,0.785,594.16,593.84,1.49047804]
[1741024343475,0.785,594.16,593.85,0.27029998]
[1741024345872,0.785,594.16,593.86,0.27026936]
[1741024346184,0.785,594.16,593.87,0.27026936]
[1741024346380,0.785,594.16,593.85,0.27026936]
[1741024346574,0.26910802,593.91,593.86,0.27026936]
[1741024346776,0.26910802,593.91,593.68,0.33688182]
[1741024346777,0.09121086,593.91,593.87,0.27026936]
[1741024346976,0.09121086,593.91,593.88,0.27026936]
[1741024347179,0.09121086,593.91,593.89,0.27026936]
[1741024347374,0.09121086,593.91,593.9,0.27026936]
[1741024347876,0.03231086,593.91,593.9,0.27026936]
[1741024348077,0.028089,593.91,593.9,0.27026936]
[1741024349075,0.00994963,593.91,593.9,0.27026936]
[1741024349674,0.00994963,593.91,593.69,0.27026936]
[1741024349877,0.00994963,593.91,593.7,0.33687047]
[1741024350083,0.00994963,593.91,593.71,0.27026936]
[1741024350483,0.00994963,593.91,593.72,0.33685912]
[1741024350676,0.00994963,593.91,593.73,0.28457984]
[1741024351178,0.00994963,593.91,593.74,0.33684777]
[1741024351377,0.00994963,593.91,593.75,0.28457984]
[1741024351682,0.00994963,593.91,593.76,0.33683643]
[1741024351880,0.00994963,593.91,593.77,0.28457984]
[1741024352277,0.00994963,593.91,593.78,0.33682508]
[1741024352480,0.00994963,593.91,593.79,0.28466545]
[1741024353884,0.00994963,593.91,593.78,0.33682508]
[1741024354085,0.00994963,593.91,593.79,0.28467986]
[1741024357181,0.00994963,593.91,593.78,0.33682508]
[1741024357386,0.00994963,593.91,593.79,0.284745]
[1741024357885,0.00994963,593.91,593.8,0.284745]
[1741024358183,0.00994963,593.91,593.81,0.284745]
[1741024358389,0.00994963,593.91,593.15,0.284745]
[1741024358582,0.00994963,593.91,593.16,0.62192215]
[1741024358787,0.00994963,593.91,593.17,0.284745]
[1741024358987,0.87,593.9,593.18,0.62191078]
[1741024359289,0.87,593.9,593.19,0.62188427]
[1741024359489,0.87,593.9,593.2,0.62187858]
[1741024359695,0.87,593.9,593.21,0.6218729]
[1741024359988,0.87,593.9,593.22,0.62186721]
[1741024360188,0.87,593.9,593.23,0.28472417]
[1741024360383,0.87,593.9,593.24,2.11233389]
[1741024360585,0.87,593.9,593.25,0.62185017]
[1741024360786,0.87,593.9,593.26,0.62184448]
[1741024360989,0.87,593.9,593.27,0.6218388]
[1741024361189,0.87,593.9,593.28,0.62183312]
[1741024361384,0.87,593.9,593.29,0.62182744]
[1741024361685,0.87,593.9,593.3,0.62182175]
[1741024361883,0.87,593.9,593.24,1.49047804]
[1741024361884,0.87,593.9,593.31,0.3370919]
[1741024362083,0.87,593.9,593.32,0.28475292]
[1741024362280,0.87,593.9,593.33,0.62183346]
[1741024362481,0.87,593.9,593.34,0.62182778]
[1741024362786,0.87,593.9,593.4,1.49047804]
[1741024362985,0.87,593.9,593.41,0.62178802]
[1741024363186,0.87,593.9,593.42,0.62178234]
[1741024363386,0.87,593.9,593.43,0.62177666]
[1741024363583,0.75603318,593.9,593.44,0.28470415]
[1741024363783,0.18858655,593.9,593.45,0.28470415]
[1741024363989,0.18858655,593.9,593.46,0.28470415]
[1741024364183,0.18858655,593.9,593.47,0.28470415]
[1741024364389,0.18858655,593.9,593.48,0.28470415]
[1741024364589,0.18858655,593.9,593.49,0.62169382]
[1741024364790,0.18858655,593.9,593.5,0.28470415]
[1741024364990,0.18858655,593.9,593.4,1.49047804]
[1741024364991,0.18858655,593.9,593.51,0.33697831]
[1741024365190,0.18858655,593.9,593.74,1.49047804]
[1741024365491,0.18858655,593.9,593.75,0.28465053]
[1741024365790,0.18858655,593.9,593.74,1.49047804]
[1741024365791,0.18858655,593.9,593.76,0.28465053]
[1741024365991,0.18858655,593.9,593.77,0.28465053]
[1741024366190,0.18858655,593.9,593.78,0.28465053]
[1741024366487,0.18858655,593.9,593.79,0.28465053]
[1741024366688,0.18858655,593.9,593.75,0.28465053]
[1741024367593,0.18858655,593.9,593.76,0.28465053]
[1741024367791,0.18858655,593.9,593.66,0.28465053]
[1741024367991,0.18858655,593.9,593.67,0.28465053]
[1741024368191,0.18858655,593.9,593.68,0.33688182]
[1741024368491,0.18858655,593.9,593.69,0.28465053]
[1741024368687,0.0325661,593.9,593.7,0.28465053]
[1741024368893,0.00910737,593.91,593.71,0.28465053]
[1741024369091,0.00910737,593.91,593.72,0.28465053]
[1741024369292,0.785,594.16,593.73,0.62150398]
[1741024369496,0.785,594.16,593.74,0.6214983]
[1741024369790,0.785,594.16,593.75,0.62143457]
[1741024369992,0.785,594.16,593.76,0.6214289]
[1741024370193,0.785,594.16,590.65,1.68245639]
[1741024370194,0.785,594.16,593.77,0.62142322]
[1741024370493,0.785,594.16,593.78,0.62141755]
[1741024370694,0.785,594.16,593.79,0.62141188]
[1741024370888,0.785,594.16,593.8,0.28459247]
[1741024371292,0.785,594.16,593.79,0.33681941]
[1741024371495,0.785,594.16,593.8,0.28510072]
[1741024371694,0.68398234,594.16,593.8,0.28510072]
[1741024371890,0.18417858,594.16,593.92,1.49047804]
[1741024372095,0.18417858,594.16,593.93,0.28510072]
[1741024374399,0.18417858,594.16,593.94,0.2850626]
[1741024374601,0.18417858,594.16,593.95,0.2850626]
[1741024374900,0.18417858,594.16,593.96,0.2850626]
[1741024375095,0.18417858,594.16,593.94,0.2850626]
[1741024375400,0.18417858,594.16,593.95,0.2850626]
[1741024375698,0.18417858,594.16,593.96,0.2850626]
[1741024375893,0.18417858,594.16,593.93,1.49047804]
[1741024376094,0.18417858,594.16,593.94,0.28504661]
[1741024376300,0.18417858,594.16,593.95,0.28504661]
[1741024376494,0.18417858,594.16,593.92,0.28504661]
[1741024376694,0.18417858,594.16,593.93,0.28504661]
[1741024376997,0.18417858,594.16,593.94,0.28504661]
[1741024377199,0.18417858,594.16,593.95,0.28504661]
[1741024377400,0.18417858,594.16,593.92,0.28504661]
[1741024377601,0.18417858,594.16,593.93,0.28504661]
[1741024377903,0.18417858,594.16,593.94,0.28504661]
[1741024378102,0.18417858,594.16,593.95,0.28504661]
[1741024378302,0.18417858,594.16,593.96,0.28504661]
[1741024378502,0.18417858,594.16,593.92,0.28504661]
[1741024378695,0.18417858,594.16,594.03,1.49047804]
[1741024378899,0.18417858,594.16,594.04,0.28504661]
[1741024379097,0.18417858,594.16,594.05,0.28510508]
[1741024379300,0.18417858,594.16,594.04,0.28510508]
[1741024379502,0.18417858,594.16,594.05,0.28510508]
[1741024379804,0.16074066,594.16,594.06,0.28510508]
[1741024379999,0.16074066,594.16,594.07,0.28510508]
[1741024380000,0.04475955,594.16,594.07,0.28510508]
[1741024380304,0.04475955,594.16,594.08,0.28510508]
[1741024380503,0.04475955,594.16,594.04,0.28510508]
[1741024380703,0.04475955,594.16,594.05,0.28510508]
[1741024380897,0.04475955,594.16,594.06,0.28510508]
[1741024381102,0.04475955,594.16,594.07,0.28510508]
[1741024381308,0.04475955,594.16,594.08,0.28510508]
[1741024381508,0.04475955,594.16,594.04,0.28510508]
[1741024381705,0.04475955,594.16,593.94,2.53588278]
[1741024381706,0.04475955,594.16,594.05,0.28511147]
[1741024381910,0.04475955,594.16,593.94,0.28511147]
[1741024384111,0.04475955,594.16,593.93,1.49047804]
[1741024384513,0.04475955,594.16,593.8,0.33681374]
[1741024384708,0.04475955,594.16,593.81,0.28525428]
[1741024384913,0.04475955,594.16,593.8,0.33681374]
[1741024384914,0.04475955,594.16,593.82,0.28525516]
[1741024385114,0.04475955,594.16,593.83,0.28525516]
[1741024385315,0.04475955,594.16,593.81,0.28525516]
[1741024385515,0.04475955,594.16,593.82,0.28525516]
[1741024385716,0.04475955,594.16,593.83,0.28525516]
[1741024385915,0.04475955,594.16,593.81,0.28525516]
[1741024386214,0.04475955,594.16,593.8,0.33681374]
[1741024386215,0.04475955,594.16,593.82,0.28525516]
[1741024386414,0.04475955,594.16,593.8,0.33681374]
[1741024389217,0.04475955,594.16,593.37,1.49047804]
[1741024389424,0.04475955,594.16,593.38,0.62235657]
[1741024389624,0.04475955,594.16,593.39,0.28530443]
[1741024390415,1.224,594.15,593.39,0.28530443]
[1741024396822,1.224,594.15,593.4,0.62234521]
[1741024397020,1.224,594.15,593.41,0.62233953]
[1741024397225,1.224,594.15,593.42,0.62233385]
[1741024397425,1.224,594.15,593.43,0.62232817]
[1741024397624,1.224,594.15,593.44,0.62232249]
[1741024397823,1.224,594.15,593.45,0.28530443]
[1741024398021,1.224,594.15,593.46,0.28530443]
[1741024398323,1.224,594.15,593.47,0.28530443]
[1741024398524,1.224,594.15,593.48,0.28530443]
[1741024398720,1.224,594.15,593.49,0.28530443]
[1741024398924,1.224,594.15,593.5,0.28530443]
[1741024399224,1.224,594.15,593.55,1.49047804]
[1741024399420,1.224,594.15,593.56,0.28527379]
[1741024400620,1.224,594.15,593.55,1.49047804]
[1741024400820,1.224,594.15,593.56,0.28527223]
[1741024401227,1.224,594.15,593.57,0.28527223]
[1741024401426,1.224,594.15,593.5,0.28527223]
[1741024401627,1.224,594.15,593.51,0.28527223]
[1741024401827,1.224,594.15,593.52,0.28527223]
[1741024402028,1.224,594.15,593.5,0.28527223]
[1741024402828,0.879,594.14,593.5,0.28527223]
[1741024403028,0.879,594.14,593.51,0.28527223]
[1741024403223,0.879,594.14,593.52,0.28527223]
[1741024403428,0.879,594.14,593.44,1.8274961]
[1741024403429,0.879,594.14,593.45,0.28527223]
[1741024403628,0.879,594.14,593.46,0.28527223]
[1741024403824,0.879,594.14,593.45,0.28527223]
[1741024404030,0.879,594.14,593.46,0.28527223]
[1741024404232,0.879,594.14,593.47,0.28527223]
[1741024404531,0.879,594.14,593.48,0.28527223]
[1741024404731,0.879,594.14,593.49,0.28527223]
[1741024404931,0.879,594.14,593.45,0.28527223]
[1741024405230,0.879,594.14,593.46,0.28527223]
[1741024405432,0.879,594.14,593.44,0.33701806]
[1741024405433,0.879,594.14,593.45,0.28527223]
[1741024405631,0.879,594.14,593.46,0.28527223]
[1741024405831,0.879,594.14,593.45,0.28527223]
[1741024406026,0.879,594.14,593.46,0.28527223]
[1741024406232,0.879,594.14,593.47,0.28527223]
[1741024406431,0.879,594.14,593.45,0.28527223]
[1741024406627,0.879,594.14,593.46,0.28527223]
[1741024406831,0.879,594.14,593.47,0.28527223]
[1741024407031,0.879,594.14,593.48,0.28527223]
[1741024407233,0.879,594.14,593.49,0.28527223]
[1741024407434,0.879,594.14,593.5,0.28527223]
[1741024407628,0.879,594.14,593.51,0.28527223]
[1741024407828,0.879,594.14,593.52,0.28527223]
[1741024408032,0.879,594.14,593.45,0.28527223]
[1741024408233,0.879,594.14,593.44,0.33701806]
[1741024408234,0.879,594.14,593.46,0.28527223]
[1741024408438,0.879,594.14,593.47,0.28527223]
[1741024408633,0.879,594.14,593.44,0.33701806]
[1741024408634,0.879,594.14,593.48,0.28525056]
[1741024408832,0.879,594.14,593.49,0.28525056]
[1741024409032,0.879,594.14,593.45,0.28525056]
[1741024409233,0.879,594.14,593.46,0.28525056]
[1741024409434,0.879,594.14,593.47,0.28525056]
[1741024409633,0.879,594.14,593.48,0.28525056]
[1741024409835,0.879,594.14,593.49,0.28525056]
[1741024410034,0.879,594.14,593.5,0.28525056]
[1741024410230,0.879,594.14,593.45,0.28525056]
[1741024410436,0.879,594.14,593.46,0.62225726]
[1741024410631,0.879,594.14,593.47,0.28525056]
[1741024410831,0.879,594.14,593.48,0.28525056]
[1741024411037,0.879,594.14,593.49,0.28525056]
[1741024411236,0.879,594.14,593.46,0.3370067]
[1741024411237,0.879,594.14,593.5,0.28525056]
[1741024411438,0.879,594.14,593.51,0.28525056]
[1741024411737,0.879,594.14,593.51,0.33697831]
[1741024412038,0.879,594.14,593.52,0.2852167]
[1741024412337,0.879,594.14,593.53,0.33696696]
[1741024412537,0.879,594.14,593.54,0.2852167]
[1741024412734,0.879,594.14,593.54,0.62217798]
[1741024412936,0.879,594.14,593.55,0.2852167]
[1741024413338,0.879,594.14,593.64,1.49047804]
[1741024413635,0.879,594.14,593.65,0.28521982]
[1741024414434,0.879,594.14,593.66,0.28521982]
[1741024414739,0.76735364,594.14,593.67,0.28521982]
[1741024415034,0.76735364,594.14,593.68,0.28513638]
[1741024415238,0.76735364,594.14,593.69,0.28513638]
[1741024415432,0.76735364,594.14,593.7,0.28513638]
[1741024415737,0.76735364,594.14,593.92,1.49047804]
[1741024416033,0.76735364,594.14,593.93,0.28513638]
[1741024416833,0.28536238,594.14,593.93,0.28513638]
[1741024417433,0.28536238,594.14,594.02,1.49047804]
[1741024417631,0.28536238,594.14,594.03,0.28513638]
[1741024418038,0.28536238,594.14,594.02,1.49047804]
[1741024418239,0.28536238,594.14,594.03,0.28515044]
[1741024419441,0.28536238,594.14,594.04,0.28514022]
[1741024419642,0.28536238,594.14,594.05,0.28514022]
[1741024419941,0.28536238,594.14,594.06,0.28514022]
[1741024420241,0.28536238,594.14,594.07,0.28514022]
[1741024420442,0.28536238,594.14,594.08,0.28514022]
[1741024420645,0.28536238,594.14,594.09,0.28514022]
[1741024420842,0.28536238,594.14,594.0,0.28514022]
[1741024421035,0.28536238,594.14,594.01,0.28514022]
[1741024421237,0.28536238,594.14,593.99,1.49047804]
[1741024421441,0.28536238,594.14,594.0,0.28509228]
[1741024421941,0.28536238,594.14,594.01,0.28509228]
[1741024422145,0.28536238,594.14,594.02,0.28509228]
[1741024422343,0.28536238,594.14,594.03,0.28509228]
[1741024422539,0.28536238,594.14,594.04,0.28509228]
[1741024422744,0.28536238,594.14,593.84,1.49047804]
[1741024422745,0.28536238,594.14,593.85,0.28509228]
[1741024422941,0.2495882,594.14,593.86,0.28509228]
[1741024423137,0.2495882,594.14,593.85,0.28509228]
[1741024423645,0.2495882,594.14,593.86,0.28513185]
[1741024423845,0.2495882,594.14,593.87,0.28513185]
[1741024424039,0.2495882,594.14,593.88,0.28513185]
[1741024424239,0.2495882,594.14,593.89,0.28513185]
[1741024424440,0.2495882,594.14,593.75,0.28513185]
[1741024424638,0.2495882,594.14,593.74,1.49047804]
[1741024424837,0.2495882,594.14,593.75,0.28519838]
[1741024425343,0.2495882,594.14,593.76,0.28519838]
[1741024425542,0.2495882,594.14,593.77,0.28519838]
[1741024425745,0.2495882,594.14,593.78,0.28519838]
[1741024426344,0.2495882,594.14,593.79,0.28520622]
[1741024426547,0.2495882,594.14,593.78,0.28520622]
[1741024426743,0.2495882,594.14,593.79,0.28520622]
[1741024426940,0.2495882,594.14,593.8,0.28520622]
[1741024427142,0.2495882,594.14,593.78,0.28520622]
[1741024427342,0.2495882,594.14,593.79,0.28520622]
[1741024427544,0.2495882,594.14,593.77,0.33683075]
[1741024427545,0.2495882,594.14,593.78,0.28520622]
[1741024427741,0.2495882,594.14,593.77,0.33683075]
[1741024427947,0.2495882,594.14,593.78,0.2851938]
[1741024428141,0.2495882,594.14,593.77,0.33683075]
[1741024428344,0.2495882,594.14,593.78,0.28520161]
[1741024429349,0.2495882,594.14,593.77,0.33683075]
[1741024429549,0.2495882,594.14,593.78,0.28519656]
[1741024430351,0.2495882,594.14,593.82,1.50457721]
[1741024430546,0.2495882,594.14,593.83,0.28519656]
[1741024430949,0.2495882,594.14,593.82,1.50457721]
[1741024431254,0.2495882,594.14,593.83,0.28516089]
[1741024432050,0.2495882,594.14,593.93,1.50457721]
[1741024432347,0.2495882,594.14,593.94,0.28516089]
[1741024433046,0.21842737,594.14,593.94,0.28516089]
[1741024433245,0.06333512,594.14,593.94,0.28516089]
[1741024435749,0.06333512,594.14,593.91,0.28516089]
[1741024435950,0.06333512,594.14,593.92,0.28516089]
[1741024436154,0.06333512,594.14,593.91,0.28516089]
[1741024436453,0.06333512,594.14,593.9,1.50457721]
[1741024436454,0.06333512,594.14,593.92,0.28516089]
[1741024436648,0.06333512,594.14,593.93,0.28516089]
[1741024436846,0.06333512,594.14,593.94,0.28516089]
[1741024437049,0.06333512,594.14,593.95,0.28516089]
[1741024437250,0.06333512,594.14,593.91,0.28516089]
[1741024437453,0.06333512,594.14,593.94,1.50457721]
[1741024437657,0.06333512,594.14,593.95,0.28516089]
[1741024439256,0.06333512,594.14,593.95,1.7897381]
[1741024439550,0.06333512,594.14,593.96,0.28516089]
[1741024441052,0.05544515,594.14,593.96,0.28516089]
[1741024441458,0.02111105,594.14,593.9,0.28516089]
[1741024443352,0.02111105,594.14,593.9,1.7897381]
[1741024443556,0.02111105,594.14,593.91,0.28516089]
[1741024445962,0.02111105,594.14,593.78,0.28516089]
[1741024446167,0.02111105,594.14,593.79,0.28516089]
[1741024446565,0.02111105,594.14,593.8,0.28516089]
[1741024446768,0.02111105,594.14,593.81,0.28516089]
[1741024447066,0.02111105,594.14,593.82,0.28516089]
[1741024447268,0.02111105,594.14,593.83,0.28516089]
[1741024447468,0.02111105,594.14,593.84,0.28516089]
[1741024447667,0.02111105,594.14,593.78,0.28516089]
[1741024447864,0.02111105,594.14,593.79,0.28516089]
[1741024448061,0.02111105,594.14,593.76,0.28516089]
[1741024448266,0.02111105,594.14,588.01,9.9698258]
[1741024448267,0.02111105,594.14,593.77,0.28516089]
[1741024448463,0.02111105,594.14,593.63,0.28516089]
[1741024448666,0.02111105,594.14,593.64,0.28516089]
[1741024448968,0.02111105,594.14,593.65,0.28516089]
[1741024449166,0.02111105,594.14,593.63,0.28516089]
[1741024449367,0.02111105,594.14,593.64,0.28516089]
[1741024449565,0.02111105,594.14,593.63,0.28516089]
[1741024449764,0.02111105,594.14,593.64,0.28516089]
[1741024449968,0.02111105,594.14,593.63,0.28516089]
[1741024450167,0.02111105,594.14,593.64,0.28516089]
[1741024450370,0.02111105,594.14,593.11,2.55987094]
[1741024450371,0.02111105,594.14,593.66,1.50457721]
[1741024450566,0.02111105,594.14,593.67,0.28516089]
[1741024450870,0.777,594.13,593.67,0.28516089]
[1741024452671,0.777,594.13,593.77,1.50457721]
[1741024452870,0.777,594.13,593.78,0.28516089]
[1741024454973,0.777,594.13,593.76,0.28516089]
[1741024455275,0.777,594.13,593.77,0.28516089]
[1741024455470,0.777,594.13,593.76,0.28516089]
[1741024455668,0.777,594.13,593.77,0.28516089]
[1741024455871,0.777,594.13,593.76,0.28516089]
[1741024456075,0.777,594.13,593.77,0.28516089]
[1741024456277,0.777,594.13,593.78,0.28516089]
[1741024456473,0.777,594.13,593.79,0.28516089]
[1741024456671,0.777,594.13,593.8,0.28516089]
[1741024456875,0.777,594.13,593.81,0.28516089]
[1741024457071,0.777,594.13,593.82,0.28516089]
[1741024457270,0.777,594.13,593.75,1.50457721]
[1741024457478,0.777,594.13,593.76,0.28516026]
[1741024457777,0.777,594.13,593.71,1.50457721]
[1741024457778,0.777,594.13,593.77,0.28516026]
[1741024457977,0.777,594.13,593.71,1.50457721]
[1741024457978,0.777,594.13,593.78,0.28516026]
[1741024458186,0.777,594.13,593.79,0.28516026]
[1741024458377,0.777,594.13,593.72,0.28516026]
[1741024458985,0.2962411,594.13,593.73,0.28515495]
[1741024459178,0.2962411,594.13,593.74,0.28515495]
[1741024459379,0.2962411,594.13,593.75,0.28515495]
[1741024459681,0.2962411,594.13,593.76,0.28515495]
[1741024459881,0.2962411,594.13,593.72,0.28515495]
[1741024460182,0.2962411,594.13,593.73,0.28515495]
[1741024460386,0.2962411,594.13,593.69,1.50457721]
[1741024460580,0.2962411,594.13,593.7,0.28517598]
[1741024462681,0.2962411,594.13,593.71,0.28517598]
[1741024462882,0.2962411,594.13,593.72,0.28517598]
[1741024463181,0.2962411,594.13,593.73,0.28517598]
[1741024463382,0.2962411,594.13,593.44,0.28517598]
[1741024463581,0.2962411,594.13,593.43,1.50457721]
[1741024463778,0.2962411,594.13,593.44,0.28512574]
[1741024464184,0.2962411,594.13,593.48,1.50457721]
[1741024464381,0.2962411,594.13,593.49,0.28512574]
[1741024464583,0.2962411,594.13,593.5,0.33698399]
[1741024464879,0.2962411,594.13,593.51,0.28512574]
[1741024465082,0.2962411,594.13,593.52,0.33697263]
[1741024465283,0.2962411,594.13,593.53,0.28512574]
[1741024465481,0.2962411,594.13,593.54,0.33696128]
[1741024465680,0.2962411,594.13,593.55,0.28512574]
[1741024466185,0.2962411,594.13,593.56,0.33694992]
[1741024466380,0.2962411,594.13,593.57,0.28512574]
[1741024466582,0.2962411,594.13,593.58,0.33693857]
[1741024466878,0.2962411,594.13,593.59,0.28512574]
[1741024467080,0.2962411,594.13,593.63,1.50457721]
[1741024467277,0.2962411,594.13,593.64,0.28512574]
[1741024468486,0.2962411,594.13,593.65,0.28510909]
[1741024468681,0.2962411,594.13,593.66,0.28510909]
[1741024468889,0.2962411,594.13,593.67,0.28510909]
[1741024469183,0.2962411,594.13,593.68,0.28510909]
[1741024469387,0.2962411,594.13,593.69,0.33687614]
[1741024469585,0.2962411,594.13,593.7,0.28510909]
[1741024470488,0.2962411,594.13,593.69,0.33687614]
[1741024470787,0.2962411,594.13,593.7,0.28514893]
[1741024471483,0.25943923,594.13,593.71,0.33686479]
[1741024471692,0.25943923,594.13,593.72,0.28514893]
[1741024471989,0.07815475,594.13,593.73,0.33685345]
[1741024472188,0.06848737,594.13,593.74,0.28514893]
[1741024472388,0.06848737,594.13,593.75,0.62199103]
[1741024472588,0.06848737,594.13,593.76,0.28514893]
[1741024472787,0.06848737,594.13,593.77,0.28514893]
[1741024472986,0.02376594,594.13,593.78,0.28514893]
[1741024473183,0.02376594,594.13,593.79,0.28514893]
[1741024473482,0.02376594,594.13,593.8,0.28514893]
[1741024473688,0.945,594.36,594.08,2.55987094]
[1741024473890,0.945,594.36,594.09,0.28514893]
[1741024474681,0.945,594.36,594.1,0.28508308]
[1741024474891,0.945,594.36,594.14,1.5071589]
[1741024475087,0.945,594.36,594.15,0.28508308]
[1741024477888,0.945,594.36,594.18,1.5071589]
[1741024478083,0.945,594.36,594.19,0.28508308]
[1741024478292,0.82843458,594.36,594.19,0.28508308]
[1741024479492,0.82843458,594.36,594.18,1.5071589]
[1741024479687,0.82843458,594.36,594.19,0.28503402]
[1741024480087,0.82843458,594.36,594.22,1.5071589]
[1741024480288,0.82843458,594.36,594.23,0.28503402]
[1741024480890,0.82843458,594.36,594.22,1.5071589]
[1741024481990,0.82843458,594.36,594.23,0.28502263]
[1741024482589,0.82843458,594.36,593.81,0.28502263]
[1741024482789,0.82843458,594.36,593.8,0.33681374]
[1741024482790,0.82843458,594.36,593.82,0.28502263]
[1741024482990,0.82843458,594.36,593.83,0.33679672]
[1741024483186,0.82843458,594.36,593.84,0.28502263]
[1741024484491,0.82843458,594.36,593.85,0.33678538]
[1741024484692,0.82843458,594.36,593.86,0.28502263]
[1741024484892,0.82843458,594.36,593.87,0.33677404]
[1741024485085,0.82843458,594.36,593.88,0.28502263]
[1741024485289,0.82843458,594.36,593.89,0.3367627]
[1741024485487,0.82843458,594.36,593.9,0.28502263]
[1741024485690,0.82843458,594.36,593.91,0.33675135]
[1741024485886,0.82843458,594.36,593.92,0.28502263]
[1741024487387,0.82843458,594.36,593.91,0.33675135]
[1741024487588,0.82843458,594.36,593.92,0.28499296]
[1741024487990,0.82843458,594.36,593.92,0.62173864]
[1741024488194,0.82843458,594.36,593.93,0.62173297]